[Event "Titled Tuesday Blitz August 22 Late 2023"]
[White "Sanchez Castillo, Sarai Carolina"]
[Black "Chor, Kevin"]
[WhiteFideId "3900754"]
[BlackFideId "2090740"]
[WhiteElo "2420"]
[BlackElo "2560"]
[Result "0-1"]
[Round "10"]
[TimeControl "180+1"]
[Date "2023.08.22"]
[WhiteClock "0:00:00"]
[BlackClock "0:00:16"]
[Board "77"]

1. e4 {[%clk 0:00:47]}  c5 {[%clk 0:02:58]} 2. Nf3 {[%clk 0:00:47]}  d6 {[%clk 0:02:56]} 3. Nc3 {[%clk 0:00:47]}  Nf6 {[%clk 0:02:56]} 4. e5 {[%clk 0:00:47]}  dxe5 {[%clk 0:02:54]} 5. Nxe5 {[%clk 0:00:48]}  a6 {[%clk 0:02:53]} 6. a4 {[%clk 0:00:47]}  e6 {[%clk 0:02:51]} 7. Be2 {[%clk 0:00:45]}  Bd6 {[%clk 0:02:49]} 8. Nc4 {[%clk 0:00:45]}  Bc7 {[%clk 0:02:48]} 9. Bf3 {[%clk 0:00:46]}  O-O {[%clk 0:02:46]} 10. O-O {[%clk 0:00:46]}  Nbd7 {[%clk 0:02:42]} 11. d3 {[%clk 0:00:46]}  Rb8 {[%clk 0:02:43]} 12. a5 {[%clk 0:00:42]}  h6 {[%clk 0:02:41]} 13. Be3 {[%clk 0:00:41]}  Ne5 {[%clk 0:02:28]} 14. Nxe5 {[%clk 0:00:33]}  Bxe5 {[%clk 0:02:28]} 15. Qd2 {[%clk 0:00:33]}  Qc7 {[%clk 0:02:25]} 16. Ra4 {[%clk 0:00:29]}  Bd4 {[%clk 0:01:51]} 17. Ne2 {[%clk 0:00:25]}  e5 {[%clk 0:01:48]} 18. c3 {[%clk 0:00:24]}  Kh7 {[%clk 0:01:37]} 19. cxd4 {[%clk 0:00:21]}  cxd4 {[%clk 0:01:38]} 20. Bf4 {[%clk 0:00:20]}  exf4 {[%clk 0:01:37]} 21. Rxd4 {[%clk 0:00:17]}  g5 {[%clk 0:01:27]} 22. h4 {[%clk 0:00:16]}  Bf5 {[%clk 0:01:22]} 23. Nxf4 {[%clk 0:00:15]}  Rbd8 {[%clk 0:01:10]} 24. Rxd8 {[%clk 0:00:13]}  Rxd8 {[%clk 0:01:09]} 25. hxg5 {[%clk 0:00:13]}  hxg5 {[%clk 0:01:10]} 26. Nh5 {[%clk 0:00:11]}  Kg6 {[%clk 0:00:54]} 27. Nxf6 {[%clk 0:00:09]}  Rxd3 {[%clk 0:00:54]} 28. Qc1 {[%clk 0:00:07]}  Qxa5 {[%clk 0:00:40]} 29. Ng4 {[%clk 0:00:05]}  Rd4 {[%clk 0:00:25]} 30. Ne3 {[%clk 0:00:04]}  Be6 {[%clk 0:00:24]} 31. Be2 {[%clk 0:00:03]}  f5 {[%clk 0:00:20]} 32. Qc3 {[%clk 0:00:03]}  Qe5 {[%clk 0:00:18]} 33. Rc1 {[%clk 0:00:02]}  f4 {[%clk 0:00:18]} 34. Qc7 {[%clk 0:00:02]}  Qxc7 {[%clk 0:00:16]} 35. Rxc7 {[%clk 0:00:02]}  fxe3 {[%clk 0:00:17]} 36. fxe3 {[%clk 0:00:03]}  Rd2 {[%clk 0:00:17]} 37. Rxb7 {[%clk 0:00:03]}  Rxe2 {[%clk 0:00:17]} 38. Kh2 {[%clk 0:00:04]}  Rxg2+ {[%clk 0:00:15]} 39. Kxg2 {[%clk 0:00:03]}  Bd5+ {[%clk 0:00:15]} 40. Kg3 {[%clk 0:00:03]}  Bxb7 {[%clk 0:00:16]} 41. e4 {[%clk 0:00:00]}  Bxe4 {[%clk 0:00:16]} 0-1


[Site "https://www.chess.com"]

[Event "Titled Tuesday Blitz August 22 Late 2023"]
[White "Boor, Carl"]
[Black "Harriott, Tyrell"]
[WhiteFideId "2017008"]
[BlackFideId "2086484"]
[WhiteElo "2552"]
[BlackElo "2412"]
[Result "1-0"]
[Round "10"]
[TimeControl "180+1"]
[Date "2023.08.22"]
[WhiteClock "0:00:37"]
[BlackClock "0:00:45"]
[Board "78"]

1. d4 {[%clk 0:03:00]}  e6 {[%clk 0:02:58]} 2. c4 {[%clk 0:02:59]}  d5 {[%clk 0:02:58]} 3. Nf3 {[%clk 0:02:58]}  c6 {[%clk 0:02:58]} 4. Qc2 {[%clk 0:02:57]}  f5 {[%clk 0:02:57]} 5. Nc3 {[%clk 0:02:56]}  Bd6 {[%clk 0:02:56]} 6. Bg5 {[%clk 0:02:53]}  Ne7 {[%clk 0:02:56]} 7. e3 {[%clk 0:02:52]}  O-O {[%clk 0:02:56]} 8. Bd3 {[%clk 0:02:50]}  Qe8 {[%clk 0:02:53]} 9. c5 {[%clk 0:02:44]}  Bc7 {[%clk 0:02:53]} 10. Bf4 {[%clk 0:02:43]}  Bd8 {[%clk 0:02:51]} 11. h3 {[%clk 0:02:37]}  Nd7 {[%clk 0:02:45]} 12. g4 {[%clk 0:02:27]}  Ng6 {[%clk 0:02:40]} 13. Bd6 {[%clk 0:02:12]}  Be7 {[%clk 0:02:37]} 14. Bxe7 {[%clk 0:02:09]}  Qxe7 {[%clk 0:02:36]} 15. gxf5 {[%clk 0:02:08]}  exf5 {[%clk 0:02:36]} 16. O-O-O {[%clk 0:02:07]}  Nf6 {[%clk 0:02:34]} 17. h4 {[%clk 0:02:00]}  Ne4 {[%clk 0:02:34]} 18. h5 {[%clk 0:01:58]}  Nh8 {[%clk 0:02:33]} 19. Rdg1 {[%clk 0:01:57]}  Nf7 {[%clk 0:02:32]} 20. Nh4 {[%clk 0:01:44]}  Nh6 {[%clk 0:02:24]} 21. Nd1 {[%clk 0:01:20]}  b6 {[%clk 0:02:18]} 22. f3 {[%clk 0:01:18]}  Nf6 {[%clk 0:02:01]} 23. Ng2 {[%clk 0:01:11]}  bxc5 {[%clk 0:02:00]} 24. Qxc5 {[%clk 0:01:02]}  Qb7 {[%clk 0:01:56]} 25. Nf4 {[%clk 0:00:58]}  Nd7 {[%clk 0:01:53]} 26. Qe7 {[%clk 0:00:50]}  Rf7 {[%clk 0:01:49]} 27. Qg5 {[%clk 0:00:46]}  Kh8 {[%clk 0:01:46]} 28. Ng6+ {[%clk 0:00:43]}  hxg6 {[%clk 0:01:43]} 29. hxg6 {[%clk 0:00:43]}  Nf6 {[%clk 0:00:53]} 30. Rxh6+ {[%clk 0:00:38]}  Kg8 {[%clk 0:00:52]} 31. gxf7+ {[%clk 0:00:37]}  Qxf7 {[%clk 0:00:45]} 32. Rxf6 {[%clk 0:00:37]} 1-0


[Site "https://www.chess.com"]

[Event "Titled Tuesday Blitz August 22 Late 2023"]
[White "Melikhov, Evgeny V."]
[Black "arenal72"]
[WhiteFideId "4122046"]
[WhiteElo "2392"]
[BlackElo "2516"]
[Result "0-1"]
[Round "10"]
[TimeControl "180+1"]
[Date "2023.08.22"]
[WhiteClock "0:00:11"]
[BlackClock "0:00:15"]
[Board "81"]

1. d4 {[%clk 0:03:00]}  d6 {[%clk 0:02:58]} 2. e4 {[%clk 0:03:00]}  Nf6 {[%clk 0:02:56]} 3. Bd3 {[%clk 0:03:00]}  g6 {[%clk 0:02:56]} 4. c4 {[%clk 0:02:59]}  Bg7 {[%clk 0:02:55]} 5. Nc3 {[%clk 0:02:59]}  O-O {[%clk 0:02:55]} 6. f3 {[%clk 0:02:59]}  e5 {[%clk 0:02:55]} 7. d5 {[%clk 0:02:59]}  c6 {[%clk 0:02:53]} 8. Be3 {[%clk 0:02:58]}  cxd5 {[%clk 0:02:52]} 9. cxd5 {[%clk 0:02:58]}  Qa5 {[%clk 0:02:50]} 10. Ne2 {[%clk 0:02:57]}  a6 {[%clk 0:02:47]} 11. O-O {[%clk 0:02:54]}  Nh5 {[%clk 0:02:35]} 12. a3 {[%clk 0:02:51]}  f5 {[%clk 0:02:29]} 13. b4 {[%clk 0:02:48]}  Qd8 {[%clk 0:02:27]} 14. exf5 {[%clk 0:02:42]}  gxf5 {[%clk 0:02:28]} 15. Rc1 {[%clk 0:02:41]}  Nd7 {[%clk 0:02:26]} 16. f4 {[%clk 0:02:24]}  e4 {[%clk 0:02:24]} 17. Bb1 {[%clk 0:02:23]}  Ndf6 {[%clk 0:02:21]} 18. Bd4 {[%clk 0:02:16]}  Bd7 {[%clk 0:02:14]} 19. Qb3 {[%clk 0:02:06]}  Rc8 {[%clk 0:02:06]} 20. a4 {[%clk 0:01:53]}  Qe8 {[%clk 0:02:03]} 21. b5 {[%clk 0:01:43]}  axb5 {[%clk 0:01:56]} 22. Nxb5 {[%clk 0:01:42]}  Rxc1 {[%clk 0:01:54]} 23. Rxc1 {[%clk 0:01:41]}  Bxb5 {[%clk 0:01:54]} 24. Qxb5 {[%clk 0:01:31]}  Qxb5 {[%clk 0:01:46]} 25. axb5 {[%clk 0:01:30]}  h6 {[%clk 0:01:37]} 26. Rc7 {[%clk 0:01:22]}  Rf7 {[%clk 0:01:36]} 27. b6 {[%clk 0:01:20]}  Kf8 {[%clk 0:01:16]} 28. Ba2 {[%clk 0:01:19]}  Ne8 {[%clk 0:01:12]} 29. Bxg7+ {[%clk 0:01:15]}  Nhxg7 {[%clk 0:01:06]} 30. Rc8 {[%clk 0:01:12]}  Nh5 {[%clk 0:01:03]} 31. g3 {[%clk 0:01:11]}  Nf6 {[%clk 0:01:01]} 32. Nd4 {[%clk 0:01:10]}  Nd7 {[%clk 0:01:00]} 33. Ne6+ {[%clk 0:01:09]}  Ke7 {[%clk 0:00:57]} 34. Nd8 {[%clk 0:00:21]}  Rf8 {[%clk 0:00:27]} 35. Nxb7 {[%clk 0:00:20]}  Nxb6 {[%clk 0:00:26]} 36. Bb3 {[%clk 0:00:18]}  Nxc8 {[%clk 0:00:25]} 37. Na5 {[%clk 0:00:18]}  Nf6 {[%clk 0:00:21]} 38. Nc6+ {[%clk 0:00:17]}  Kf7 {[%clk 0:00:22]} 39. Kf2 {[%clk 0:00:16]}  Ne7 {[%clk 0:00:22]} 40. h3 {[%clk 0:00:14]}  Nxc6 {[%clk 0:00:21]} 41. dxc6+ {[%clk 0:00:14]}  Ke7 {[%clk 0:00:21]} 42. g4 {[%clk 0:00:14]}  fxg4 {[%clk 0:00:18]} 43. hxg4 {[%clk 0:00:14]}  Nxg4+ {[%clk 0:00:18]} 44. Kg3 {[%clk 0:00:14]}  Nf6 {[%clk 0:00:18]} 45. f5 {[%clk 0:00:14]}  Rc8 {[%clk 0:00:17]} 46. Ba4 {[%clk 0:00:14]}  d5 {[%clk 0:00:16]} 47. Kf4 {[%clk 0:00:14]}  Kd6 {[%clk 0:00:16]} 48. Ke3 {[%clk 0:00:11]}  Ke5 {[%clk 0:00:15]} 0-1


[Site "https://www.chess.com"]

[Event "Titled Tuesday Blitz August 22 Late 2023"]
[White "Labussiere, Yago"]
[Black "Toropov, Pavel"]
[WhiteFideId "2186969"]
[BlackFideId "24129178"]
[WhiteElo "2371"]
[BlackElo "2470"]
[Result "0-1"]
[Round "10"]
[TimeControl "180+1"]
[Date "2023.08.22"]
[WhiteClock "0:00:02"]
[BlackClock "0:00:35"]
[Board "83"]

1. c4 {[%clk 0:03:00]}  c6 {[%clk 0:02:59]} 2. d4 {[%clk 0:02:56]}  d5 {[%clk 0:03:00]} 3. cxd5 {[%clk 0:02:57]}  cxd5 {[%clk 0:03:00]} 4. Nc3 {[%clk 0:02:57]}  Nf6 {[%clk 0:03:01]} 5. Bf4 {[%clk 0:02:58]}  a6 {[%clk 0:03:00]} 6. e3 {[%clk 0:02:58]}  Nc6 {[%clk 0:03:00]} 7. Bd3 {[%clk 0:02:58]}  Bg4 {[%clk 0:03:00]} 8. Nge2 {[%clk 0:02:51]}  Rc8 {[%clk 0:02:59]} 9. h3 {[%clk 0:02:47]}  Bxe2 {[%clk 0:02:59]} 10. Qxe2 {[%clk 0:02:45]}  e6 {[%clk 0:02:59]} 11. O-O {[%clk 0:02:42]}  Bd6 {[%clk 0:02:59]} 12. Bxd6 {[%clk 0:02:42]}  Qxd6 {[%clk 0:03:00]} 13. f4 {[%clk 0:02:43]}  O-O {[%clk 0:03:00]} 14. g4 {[%clk 0:02:43]}  Nd7 {[%clk 0:02:58]} 15. g5 {[%clk 0:02:43]}  b5 {[%clk 0:02:28]} 16. Qg2 {[%clk 0:02:37]}  Na5 {[%clk 0:02:25]} 17. a3 {[%clk 0:02:10]}  Nc4 {[%clk 0:02:22]} 18. Qe2 {[%clk 0:02:05]}  Rc7 {[%clk 0:02:08]} 19. Nd1 {[%clk 0:01:49]}  Rfc8 {[%clk 0:02:04]} 20. Nf2 {[%clk 0:01:49]}  f5 {[%clk 0:01:39]} 21. gxf6 {[%clk 0:01:46]}  Nxf6 {[%clk 0:01:38]} 22. Ng4 {[%clk 0:01:47]}  Nxg4 {[%clk 0:01:27]} 23. hxg4 {[%clk 0:01:48]}  g5 {[%clk 0:01:27]} 24. fxg5 {[%clk 0:01:36]}  Qg3+ {[%clk 0:01:25]} 25. Kh1 {[%clk 0:01:33]}  Qh3+ {[%clk 0:01:20]} 26. Qh2 {[%clk 0:01:27]}  Qxh2+ {[%clk 0:01:20]} 27. Kxh2 {[%clk 0:01:27]}  Nxe3 {[%clk 0:01:20]} 28. Rf4 {[%clk 0:00:58]}  Rc1 {[%clk 0:01:13]} 29. Rxc1 {[%clk 0:00:57]}  Rxc1 {[%clk 0:01:14]} 30. Kg3 {[%clk 0:00:35]}  Rd1 {[%clk 0:01:10]} 31. Be2 {[%clk 0:00:27]}  Rd2 {[%clk 0:01:10]} 32. Kf3 {[%clk 0:00:22]}  Nc4 {[%clk 0:00:54]} 33. Bxc4 {[%clk 0:00:12]}  dxc4 {[%clk 0:00:52]} 34. Rf6 {[%clk 0:00:12]}  Rxb2 {[%clk 0:00:37]} 35. Rxe6 {[%clk 0:00:12]}  Ra2 {[%clk 0:00:37]} 36. Rxa6 {[%clk 0:00:11]}  b4 {[%clk 0:00:38]} 37. Rc6 {[%clk 0:00:09]}  Rxa3+ {[%clk 0:00:37]} 38. Ke4 {[%clk 0:00:09]}  c3 {[%clk 0:00:37]} 39. d5 {[%clk 0:00:09]}  Kf7 {[%clk 0:00:37]} 40. Rc7+ {[%clk 0:00:07]}  Ke8 {[%clk 0:00:37]} 41. Rxh7 {[%clk 0:00:07]}  c2 {[%clk 0:00:36]} 42. Rc7 {[%clk 0:00:08]}  Rc3 {[%clk 0:00:36]} 43. Rh7 {[%clk 0:00:01]}  c1=Q {[%clk 0:00:35]} 44. Rh8+ {[%clk 0:00:02]}  Kd7 {[%clk 0:00:35]} 0-1


[Site "https://www.chess.com"]

[Event "Titled Tuesday Blitz August 22 Late 2023"]
[White "Ardila, Oscar Humberto"]
[Black "Seletsky, Grigory"]
[WhiteFideId "4404742"]
[BlackFideId "14112191"]
[WhiteElo "2330"]
[BlackElo "2468"]
[Result "0-1"]
[Round "10"]
[TimeControl "180+1"]
[Date "2023.08.22"]
[WhiteClock "0:00:04"]
[BlackClock "0:00:11"]
[Board "84"]

1. d4 {[%clk 0:02:59]}  c5 {[%clk 0:02:59]} 2. d5 {[%clk 0:02:59]}  e5 {[%clk 0:02:59]} 3. c4 {[%clk 0:02:59]}  d6 {[%clk 0:03:00]} 4. Nc3 {[%clk 0:03:00]}  Nf6 {[%clk 0:02:58]} 5. e4 {[%clk 0:03:00]}  Be7 {[%clk 0:02:58]} 6. g3 {[%clk 0:02:58]}  O-O {[%clk 0:02:58]} 7. Bg2 {[%clk 0:02:58]}  Na6 {[%clk 0:02:58]} 8. Nge2 {[%clk 0:02:58]}  Nc7 {[%clk 0:02:58]} 9. O-O {[%clk 0:02:57]}  a6 {[%clk 0:02:59]} 10. a4 {[%clk 0:02:57]}  Rb8 {[%clk 0:02:59]} 11. Be3 {[%clk 0:02:50]}  b5 {[%clk 0:02:58]} 12. axb5 {[%clk 0:02:49]}  axb5 {[%clk 0:02:59]} 13. cxb5 {[%clk 0:02:46]}  Nxb5 {[%clk 0:02:58]} 14. Nxb5 {[%clk 0:02:45]}  Rxb5 {[%clk 0:02:57]} 15. Qc2 {[%clk 0:02:43]}  Qb6 {[%clk 0:02:42]} 16. Rfb1 {[%clk 0:02:37]}  Bd7 {[%clk 0:02:37]} 17. Nc3 {[%clk 0:02:36]}  Rb3 {[%clk 0:02:31]} 18. h3 {[%clk 0:02:33]}  Rb8 {[%clk 0:02:30]} 19. Bc1 {[%clk 0:02:24]}  h6 {[%clk 0:02:23]} 20. Bf1 {[%clk 0:02:24]}  Nh7 {[%clk 0:02:14]} 21. Bc4 {[%clk 0:02:23]}  Rb4 {[%clk 0:02:14]} 22. Bf1 {[%clk 0:02:19]}  Bg5 {[%clk 0:02:10]} 23. Ra6 {[%clk 0:02:11]}  Qc7 {[%clk 0:02:01]} 24. h4 {[%clk 0:01:40]}  Bxc1 {[%clk 0:01:58]} 25. Qxc1 {[%clk 0:01:41]}  Nf6 {[%clk 0:01:46]} 26. Qc2 {[%clk 0:01:36]}  R4b6 {[%clk 0:01:37]} 27. Rxb6 {[%clk 0:01:24]}  Qxb6 {[%clk 0:01:33]} 28. b3 {[%clk 0:01:25]}  Qb4 {[%clk 0:01:30]} 29. Bc4 {[%clk 0:01:23]}  Ne8 {[%clk 0:01:24]} 30. Ra1 {[%clk 0:01:14]}  h5 {[%clk 0:01:22]} 31. Ra7 {[%clk 0:01:12]}  Rb7 {[%clk 0:01:18]} 32. Ra8 {[%clk 0:01:09]}  g6 {[%clk 0:01:18]} 33. Kg2 {[%clk 0:00:49]}  Kg7 {[%clk 0:01:17]} 34. Qd3 {[%clk 0:00:39]}  Nc7 {[%clk 0:01:14]} 35. Ra1 {[%clk 0:00:36]}  Nb5 {[%clk 0:01:06]} 36. Nxb5 {[%clk 0:00:32]}  Bxb5 {[%clk 0:01:05]} 37. Rc1 {[%clk 0:00:31]}  Bxc4 {[%clk 0:01:04]} 38. bxc4 {[%clk 0:00:32]}  Qb2 {[%clk 0:01:02]} 39. Rc2 {[%clk 0:00:32]}  Qd4 {[%clk 0:01:01]} 40. Qe2 {[%clk 0:00:30]}  Rb4 {[%clk 0:00:59]} 41. Kh2 {[%clk 0:00:30]}  Kh6 {[%clk 0:00:57]} 42. Kg2 {[%clk 0:00:29]}  f5 {[%clk 0:00:57]} 43. exf5 {[%clk 0:00:27]}  gxf5 {[%clk 0:00:58]} 44. Qe3+ {[%clk 0:00:25]}  Qxe3 {[%clk 0:00:55]} 45. fxe3 {[%clk 0:00:26]}  e4 {[%clk 0:00:52]} 46. Kf2 {[%clk 0:00:25]}  Kg6 {[%clk 0:00:52]} 47. Ke2 {[%clk 0:00:25]}  Kf6 {[%clk 0:00:52]} 48. Kd2 {[%clk 0:00:25]}  Rb1 {[%clk 0:00:40]} 49. Rc1 {[%clk 0:00:25]}  Rb8 {[%clk 0:00:23]} 50. Rc2 {[%clk 0:00:24]}  Rg8 {[%clk 0:00:22]} 51. Ra2 {[%clk 0:00:20]}  Rxg3 {[%clk 0:00:22]} 52. Ra8 {[%clk 0:00:20]}  Rg2+ {[%clk 0:00:20]} 53. Ke1 {[%clk 0:00:20]}  Rc2 {[%clk 0:00:17]} 54. Rf8+ {[%clk 0:00:20]}  Ke7 {[%clk 0:00:15]} 55. Rxf5 {[%clk 0:00:20]}  Rxc4 {[%clk 0:00:15]} 56. Rxh5 {[%clk 0:00:20]}  Rc2 {[%clk 0:00:15]} 57. Rh7+ {[%clk 0:00:18]}  Kf6 {[%clk 0:00:15]} 58. Rd7 {[%clk 0:00:17]}  Ke5 {[%clk 0:00:15]} 59. h5 {[%clk 0:00:17]}  Kxd5 {[%clk 0:00:16]} 60. h6 {[%clk 0:00:18]}  Rh2 {[%clk 0:00:16]} 61. h7 {[%clk 0:00:18]}  Kc6 {[%clk 0:00:15]} 62. Rg7 {[%clk 0:00:18]}  d5 {[%clk 0:00:16]} 63. Kd1 {[%clk 0:00:18]}  Kb5 {[%clk 0:00:16]} 64. Rg5 {[%clk 0:00:16]}  Kc4 {[%clk 0:00:14]} 65. Rg7 {[%clk 0:00:15]}  d4 {[%clk 0:00:14]} 66. exd4 {[%clk 0:00:14]}  cxd4 {[%clk 0:00:14]} 67. Ke1 {[%clk 0:00:14]}  Kd3 {[%clk 0:00:14]} 68. Kf1 {[%clk 0:00:15]}  e3 {[%clk 0:00:14]} 69. Kg1 {[%clk 0:00:15]}  Rh6 {[%clk 0:00:13]} 70. Kf1 {[%clk 0:00:15]}  Kd2 {[%clk 0:00:13]} 71. Rg2+ {[%clk 0:00:13]}  Kd1 {[%clk 0:00:12]} 72. Ra2 {[%clk 0:00:08]}  Rxh7 {[%clk 0:00:10]} 73. Ra1+ {[%clk 0:00:08]}  Kd2 {[%clk 0:00:10]} 74. Ra2+ {[%clk 0:00:09]}  Kd3 {[%clk 0:00:11]} 75. Ra3+ {[%clk 0:00:09]}  Ke4 {[%clk 0:00:11]} 76. Ke2 {[%clk 0:00:10]}  Rh2+ {[%clk 0:00:11]} 77. Ke1 {[%clk 0:00:11]}  d3 {[%clk 0:00:11]} 78. Ra4+ {[%clk 0:00:11]}  Kf3 {[%clk 0:00:11]} 79. Rh4 {[%clk 0:00:04]}  Rxh4 {[%clk 0:00:11]} 0-1


[Site "https://www.chess.com"]

[Event "Titled Tuesday Blitz August 22 Late 2023"]
[White "Florianovitz, Derlei Alex"]
[Black "Dwilewicz, Katarzyna"]
[WhiteFideId "2114178"]
[BlackFideId "1148486"]
[WhiteElo "2233"]
[BlackElo "2432"]
[Result "0-1"]
[Round "10"]
[TimeControl "180+1"]
[Date "2023.08.22"]
[WhiteClock "0:00:02"]
[BlackClock "0:00:17"]
[Board "89"]

1. e4 {[%clk 0:03:00]}  c5 {[%clk 0:02:59]} 2. Nf3 {[%clk 0:02:58]}  d6 {[%clk 0:03:00]} 3. d4 {[%clk 0:02:58]}  cxd4 {[%clk 0:03:00]} 4. Nxd4 {[%clk 0:02:59]}  Nf6 {[%clk 0:03:00]} 5. Nc3 {[%clk 0:02:59]}  a6 {[%clk 0:03:01]} 6. h3 {[%clk 0:02:59]}  e5 {[%clk 0:03:00]} 7. Nde2 {[%clk 0:02:58]}  h5 {[%clk 0:03:00]} 8. g3 {[%clk 0:02:56]}  Be6 {[%clk 0:02:59]} 9. Bg2 {[%clk 0:02:56]}  Be7 {[%clk 0:02:59]} 10. O-O {[%clk 0:02:56]}  b5 {[%clk 0:02:56]} 11. Bg5 {[%clk 0:02:52]}  Nbd7 {[%clk 0:02:51]} 12. a3 {[%clk 0:02:49]}  Rc8 {[%clk 0:02:48]} 13. Qd2 {[%clk 0:02:46]}  Nb6 {[%clk 0:02:41]} 14. b3 {[%clk 0:02:45]}  Qc7 {[%clk 0:02:37]} 15. Rad1 {[%clk 0:02:45]}  Rd8 {[%clk 0:02:30]} 16. Kh2 {[%clk 0:02:34]}  Qc8 {[%clk 0:02:05]} 17. f4 {[%clk 0:02:28]}  exf4 {[%clk 0:01:58]} 18. gxf4 {[%clk 0:02:27]}  d5 {[%clk 0:01:46]} 19. e5 {[%clk 0:02:22]}  Ne4 {[%clk 0:01:34]} 20. Nxe4 {[%clk 0:02:12]}  dxe4 {[%clk 0:01:34]} 21. Qe3 {[%clk 0:02:08]}  Rxd1 {[%clk 0:01:05]} 22. Rxd1 {[%clk 0:02:03]}  Bxg5 {[%clk 0:01:05]} 23. Qxb6 {[%clk 0:01:53]}  Be7 {[%clk 0:01:00]} 24. Nd4 {[%clk 0:01:49]}  O-O {[%clk 0:00:54]} 25. f5 {[%clk 0:01:29]}  Bxf5 {[%clk 0:00:47]} 26. Nc6 {[%clk 0:01:19]}  Bg5 {[%clk 0:00:44]} 27. Rg1 {[%clk 0:01:14]}  Kh7 {[%clk 0:00:38]} 28. Qc5 {[%clk 0:00:48]}  Bf4+ {[%clk 0:00:38]} 29. Kh1 {[%clk 0:00:48]}  Bxh3 {[%clk 0:00:38]} 30. Bxe4+ {[%clk 0:00:39]}  Bf5 {[%clk 0:00:27]} 31. Qd5 {[%clk 0:00:29]}  Bxe4+ {[%clk 0:00:21]} 32. Qxe4+ {[%clk 0:00:29]}  g6 {[%clk 0:00:22]} 33. Qxf4 {[%clk 0:00:23]}  Qxc6+ {[%clk 0:00:22]} 34. Kh2 {[%clk 0:00:22]}  Qe6 {[%clk 0:00:20]} 35. Rf1 {[%clk 0:00:17]}  Kg7 {[%clk 0:00:19]} 36. Rf2 {[%clk 0:00:17]}  Re8 {[%clk 0:00:20]} 37. a4 {[%clk 0:00:12]}  bxa4 {[%clk 0:00:19]} 38. bxa4 {[%clk 0:00:12]}  Re7 {[%clk 0:00:19]} 39. c4 {[%clk 0:00:12]}  Qxe5 {[%clk 0:00:19]} 40. Qxe5+ {[%clk 0:00:11]}  Rxe5 {[%clk 0:00:20]} 41. Rc2 {[%clk 0:00:09]}  Rc5 {[%clk 0:00:20]} 42. Kg3 {[%clk 0:00:10]}  g5 {[%clk 0:00:20]} 43. Kf3 {[%clk 0:00:10]}  f5 {[%clk 0:00:21]} 44. Ke3 {[%clk 0:00:10]}  h4 {[%clk 0:00:21]} 45. Kd4 {[%clk 0:00:11]}  Rc8 {[%clk 0:00:21]} 46. c5 {[%clk 0:00:12]}  g4 {[%clk 0:00:22]} 47. Ke5 {[%clk 0:00:12]}  Kg6 {[%clk 0:00:21]} 48. Kd6 {[%clk 0:00:12]}  h3 {[%clk 0:00:22]} 49. Kd7 {[%clk 0:00:13]}  Rh8 {[%clk 0:00:20]} 50. c6 {[%clk 0:00:13]}  g3 {[%clk 0:00:21]} 51. c7 {[%clk 0:00:13]}  h2 {[%clk 0:00:21]} 52. Re2 {[%clk 0:00:13]}  h1=Q {[%clk 0:00:18]} 53. Re6+ {[%clk 0:00:13]}  Kg5 {[%clk 0:00:18]} 54. Rd6 {[%clk 0:00:07]}  Qb7 {[%clk 0:00:16]} 55. a5 {[%clk 0:00:05]}  Qc8+ {[%clk 0:00:17]} 56. Kc6 {[%clk 0:00:02]}  Rh7 {[%clk 0:00:17]} 0-1


[Site "https://www.chess.com"]

[Event "Titled Tuesday Blitz August 22 Late 2023"]
[White "Kula, Robert"]
[Black "chessmateto"]
[WhiteFideId "1101218"]
[WhiteElo "2169"]
[BlackElo "2426"]
[Result "0-1"]
[Round "10"]
[TimeControl "180+1"]
[Date "2023.08.22"]
[WhiteClock "0:00:00"]
[BlackClock "0:00:15"]
[Board "92"]

1. e4 {[%clk 0:02:57]}  c6 {[%clk 0:03:00]} 2. d4 {[%clk 0:02:56]}  d5 {[%clk 0:03:01]} 3. e5 {[%clk 0:02:57]}  Bf5 {[%clk 0:03:00]} 4. g4 {[%clk 0:02:57]}  Be4 {[%clk 0:02:59]} 5. f3 {[%clk 0:02:57]}  Bg6 {[%clk 0:03:00]} 6. h4 {[%clk 0:02:57]}  h5 {[%clk 0:03:00]} 7. e6 {[%clk 0:02:51]}  Qd6 {[%clk 0:03:00]} 8. exf7+ {[%clk 0:02:48]}  Bxf7 {[%clk 0:03:01]} 9. Ne2 {[%clk 0:02:43]}  Nd7 {[%clk 0:03:00]} 10. Bf4 {[%clk 0:02:43]}  e5 {[%clk 0:03:00]} 11. dxe5 {[%clk 0:02:42]}  Nxe5 {[%clk 0:03:01]} 12. Bg2 {[%clk 0:02:28]}  O-O-O {[%clk 0:02:56]} 13. Qd4 {[%clk 0:02:15]}  Re8 {[%clk 0:02:53]} 14. Qxa7 {[%clk 0:02:05]}  Nxf3+ {[%clk 0:02:12]} 15. Kf1 {[%clk 0:01:53]}  Ne5 {[%clk 0:02:01]} 16. Nbc3 {[%clk 0:01:44]}  Nf6 {[%clk 0:01:58]} 17. g5 {[%clk 0:01:30]}  Nfg4 {[%clk 0:01:56]} 18. Rd1 {[%clk 0:01:25]}  Qc7 {[%clk 0:01:44]} 19. Bh3 {[%clk 0:01:17]}  Bd6 {[%clk 0:01:37]} 20. Nd4 {[%clk 0:01:16]}  Rhf8 {[%clk 0:01:30]} 21. Kg2 {[%clk 0:01:12]}  Bg6 {[%clk 0:01:27]} 22. Rhf1 {[%clk 0:01:02]}  Nd7 {[%clk 0:01:00]} 23. Qa8+ {[%clk 0:00:56]}  Qb8 {[%clk 0:00:56]} 24. Qxb8+ {[%clk 0:00:51]}  Bxb8 {[%clk 0:00:56]} 25. Bxb8 {[%clk 0:00:46]}  Ne3+ {[%clk 0:00:48]} 26. Kg1 {[%clk 0:00:43]}  Nxf1 {[%clk 0:00:46]} 27. Bd6 {[%clk 0:00:40]}  Ne3 {[%clk 0:00:31]} 28. Rd2 {[%clk 0:00:39]}  Nc4 {[%clk 0:00:29]} 29. Bxf8 {[%clk 0:00:37]}  Nxd2 {[%clk 0:00:30]} 30. Bxg7 {[%clk 0:00:37]}  c5 {[%clk 0:00:26]} 31. Ndb5 {[%clk 0:00:36]}  Re1+ {[%clk 0:00:24]} 32. Kf2 {[%clk 0:00:35]}  Rc1 {[%clk 0:00:23]} 33. Bf6 {[%clk 0:00:33]}  Rxc2 {[%clk 0:00:22]} 34. Nd6+ {[%clk 0:00:33]}  Kc7 {[%clk 0:00:21]} 35. Ndb5+ {[%clk 0:00:24]}  Kc6 {[%clk 0:00:20]} 36. Na7+ {[%clk 0:00:24]}  Kb6 {[%clk 0:00:20]} 37. Ncb5 {[%clk 0:00:24]}  Ne4+ {[%clk 0:00:18]} 38. Ke3 {[%clk 0:00:23]}  Ndxf6 {[%clk 0:00:19]} 39. gxf6 {[%clk 0:00:23]}  Nxf6 {[%clk 0:00:19]} 40. a4 {[%clk 0:00:21]}  Rxb2 {[%clk 0:00:19]} 41. Nc8+ {[%clk 0:00:21]}  Ka5 {[%clk 0:00:19]} 42. Nbd6 {[%clk 0:00:19]}  d4+ {[%clk 0:00:19]} 43. Kf4 {[%clk 0:00:19]}  d3 {[%clk 0:00:19]} 44. Nc4+ {[%clk 0:00:16]}  Kxa4 {[%clk 0:00:19]} 45. Nxb2+ {[%clk 0:00:17]}  Kb3 {[%clk 0:00:19]} 46. Nd1 {[%clk 0:00:17]}  Kc2 {[%clk 0:00:19]} 47. Ne3+ {[%clk 0:00:17]}  Kc1 {[%clk 0:00:18]} 48. Nd6 {[%clk 0:00:15]}  d2 {[%clk 0:00:18]} 49. Nxb7 {[%clk 0:00:15]}  Nd5+ {[%clk 0:00:15]} 50. Nxd5 {[%clk 0:00:15]}  d1=Q {[%clk 0:00:15]} 51. Ne3 {[%clk 0:00:15]}  Qa4+ {[%clk 0:00:12]} 52. Kg3 {[%clk 0:00:14]}  Qa7 {[%clk 0:00:11]} 53. Nd6 {[%clk 0:00:14]}  Qc7 {[%clk 0:00:11]} 54. Nc4 {[%clk 0:00:12]}  Bd3 {[%clk 0:00:12]} 55. Kf3 {[%clk 0:00:10]}  Bxc4 {[%clk 0:00:12]} 56. Nxc4 {[%clk 0:00:10]}  Qf7+ {[%clk 0:00:12]} 57. Ke3 {[%clk 0:00:09]}  Qxc4 {[%clk 0:00:13]} 58. Bf5 {[%clk 0:00:09]}  Qxh4 {[%clk 0:00:13]} 59. Bd3 {[%clk 0:00:09]}  Qg3+ {[%clk 0:00:13]} 60. Ke4 {[%clk 0:00:09]}  h4 {[%clk 0:00:14]} 61. Kd5 {[%clk 0:00:09]}  h3 {[%clk 0:00:15]} 62. Kc4 {[%clk 0:00:00]}  h2 {[%clk 0:00:15]} 0-1


[Site "https://www.chess.com"]